[Event "European Womens-ch 2025"]
[Site "Rhodes"]
[Date "2025.04.04"]
[Round "5.55"]
[White "Schippke, Manon"]
[Black "Subramanian, Anusha"]
[Result "1-0"]
[Annotator "ChessBase"]
[ECO "D30"]
[WhiteElo "2247"]
[BlackElo "2026"]
[PlyCount "109"]
[EventDate "2025.03.29"]
[EventType "swiss"]
[EventCountry "GRE"]
[SourceTitle "playchess.com"]
[Source "ChessBase"]
[SourceQuality "1"]
[TimeControl "40/5400+30:1800+30"]

1. d4 {[%emt 1:31:00]} d5 {[%emt 1:31:00]} 2. c4 c6 {[%emt 0:00:30]} 3. Nf3 Nf6 {[%emt 0:00:30]} 4. e3 {[%emt 0:01:30]} e6 {[%emt 0:00:30]} 5. Nbd2 {[%emt 0:00:30]} Nbd7 {[%emt 0:00:30]} 6. b3 {[%emt 0:00:30]} b6 {[%emt 0:00:30]} 7. Bb2 {[%emt 0:00:30]} Bb7 {[%emt 0:00:30]} 8. Bd3 {[%emt 0:00:30]} Be7 {[%emt 0:00:30]} 9. O-O {[%emt 0:00:30]} c5 {[%emt 0:00:30]} 10. cxd5 {[%emt 0:00:30]} exd5 {[%emt 0:00:30]} 11. dxc5 {[%emt 0:00:30]} bxc5 {[%emt 0:00:30]} 12. Qc2 {[%emt 0:00:30]} O-O {[%emt 0:00:30]} 13. e4 dxe4 14. Nxe4 {[%emt 0:01:00]} Nd5 {[%emt 0:01:00]} 15. Rad1 {[%emt 0:00:30]} Qc7 {[%emt 0:00:30]} 16. Neg5 {[%emt 0:00:30]} h6 {[%emt 0:00:30]} 17. Bh7+ {[%emt 0:00:30]} Kh8 {[%emt 0:00:30]} 18. Bg8 {[%emt 0:00:30]} N7f6 {[%emt 0:00:30]} 19. Rxd5 {[%emt 0:00:30]} Kxg8 {[%emt 0:00:30]} 20. Bxf6 {[%emt 0:00:30]} hxg5 {[%emt 0:00:30]} 21. Nxg5 {[%emt 0:00:30]} g6 {[%emt 0:00:30]} 22. Bxe7 {[%emt 0:00:30]} Bxd5 {[%emt 0:00:30]} 23. Bxf8 {[%emt 0:00:30]} Rxf8 {[%emt 0:00:30]} 24. Qd3 {[%emt 0:00:30]} Rd8 {[%emt 0:00:30]} 25. Rd1 {[%emt 0:00:30]} Qe7 {[%emt 0:00:30]} 26. h4 Rd7 {[%emt 0:00:30]} 27. Qe3 Bb7 {[%emt 0:00:30]} 28. Rxd7 Qxd7 {[%emt 0:00:30]} 29. Qe5 Qd5 {[%emt 0:00:30]} 30. Qxd5 Bxd5 {[%emt 0:00:30]} 31. f3 c4 {[%emt 0:00:30]} 32. bxc4 Bxc4 33. a3 {[%emt 0:04:00]} Kf8 {[%emt 0:01:00]} 34. Kf2 {[%emt 0:00:30]} Ke7 {[%emt 0:00:30]} 35. Ke3 {[%emt 0:00:30]} f6 {[%emt 0:00:30]} 36. Ne4 {[%emt 0:00:30]} Ke6 {[%emt 0:00:30]} 37. Kf4 {[%emt 0:00:30]} Bd5 {[%emt 0:00:30]} 38. g4 {[%emt 0:00:30]} Bc4 {[%emt 0:00:30]} 39. g5 {[%emt 0:00:30]} f5 {[%emt 0:00:30]} 40. Ng3 {[%emt 0:00:30]} Bd3 {[%emt 0:00:30]} 41. h5 {[%emt 0:30:30]} gxh5 {[%emt 0:30:30]} 42. Nxh5 {[%emt 0:00:30]} Kf7 {[%emt 0:00:30]} 43. Ke5 {[%emt 0:00:30]} Be2 {[%emt 0:00:30]} 44. g6+ {[%emt 0:00:30]} Kf8 {[%emt 0:00:30]} 45. Kf4 {[%emt 0:00:30]} Bd3 {[%emt 0:00:30]} 46. Ng3 {[%emt 0:00:30]} Ke7 {[%emt 0:00:30]} 47. Ke5 {[%emt 0:00:30]} f4 {[%emt 0:00:30]} 48. Nf5+ {[%emt 0:00:30]} Kf8 {[%emt 0:00:30]} 49. Kxf4 {[%emt 0:00:30]} Be2 {[%emt 0:00:30]} 50. Nd4 {[%emt 0:00:30]} Bc4 {[%emt 0:00:30]} 51. Kg5 {[%emt 0:00:30]} Kg7 {[%emt 0:00:30]} 52. f4 {[%emt 0:00:30]} Bd5 {[%emt 0:00:30]} 53. Nf5+ {[%emt 0:00:30]} Kh8 {[%emt 0:00:30]} 54. Kh6 {[%emt 0:00:30]} Be6 {[%emt 0:00:30]} 55. Ne7 {[%emt 0:00:30]} 1-0

[Event "European Womens-ch 2025"]
[Site "Rhodes"]
[Date "2025.04.04"]
[Round "5.56"]
[White "Ciolacu, Alessia-Mihaela"]
[Black "Karadas, Hena"]
[Result "1-0"]
[Annotator "NA"]
[ECO "A28"]
[WhiteElo "2136"]
[BlackElo "1931"]
[PlyCount "53"]
[EventDate "2025.03.29"]
[EventType "swiss"]
[EventCountry "GRE"]
[SourceTitle "playchess.com"]
[Source "ChessBase"]
[SourceQuality "1"]
[TimeControl "40/5400+30:1800+30"]

1. c4 {[%emt 0:02:50]} e5 {[%emt 0:00:34]} 2. Nc3 {[%emt 0:00:19]} Nf6 {[%emt 0:00:20]} 3. Nf3 {[%emt 0:00:30]} Nc6 {[%emt 0:00:28]} 4. e4 {[%emt 0:00:43]} Bc5 {[%emt 0:09:31]} 5. Nxe5 {[%emt 0:00:48]} Nxe5 {[%emt 0:01:56]} 6. d4 {[%emt 0:00:16]} Bb4 {[%emt 0:04:20]} 7. dxe5 {[%emt 0:00:13]} Nxe4 {[%emt 0:00:13]} 8. Qf3 {[%emt 0:00:39]} d5 {[%emt 0:07:39]} 9. Be2 {[%emt 0:30:57]} O-O {[%emt 0:12:30]} 10. O-O {[%emt 0:02:25]} Bxc3 {[%emt 0:01:50]} 11. bxc3 {[%emt 0:00:09]} f6 {[%emt 0:02:59]} 12. cxd5 {[%emt 0:17:25]} Qxd5 {[%emt 0:02:31]} 13. Ba3 {[%emt 0:00:51]} c5 {[%emt 0:07:50]} 14. exf6 {[%emt 0:04:46]} Rxf6 {[%emt 0:01:47]} 15. Qe3 {[%emt 0:00:24]} b6 {[%emt 0:05:43]} 16. Rad1 {[%emt 0:08:49]} Qe6 {[%emt 0:38:19]} 17. Rd8+ {[%emt 0:02:46]} Kf7 {[%emt 0:00:00]} 18. Rfd1 {[%emt 0:10:21]} Nxc3 {[%emt 0:00:00]} 19. Bc4 {[%emt 0:01:53]} Nxd1 {[%emt 0:00:00]} 20. Bxe6+ {[%emt 0:00:15]} Bxe6 {[%emt 0:00:00]} 21. Rxd1 {[%emt 0:00:14]} Bxa2 {[%emt 0:00:00]} 22. Rd7+ {[%emt 0:04:52]} Kg8 {[%emt 0:00:00]} 23. Bb2 {[%emt 0:00:38]} Rg6 {[%emt 0:00:00]} 24. Qe5 {[%emt 0:00:55]} Bf7 {[%emt 0:00:00]} 25. Rxf7 {[%emt 0:04:44]} Kxf7 {[%emt 0:00:00]} 26. Qd5+ {[%emt 0:00:08]} Re6 {[%emt 0:00:00]} 27. f4 {[%emt 0:00:05]} 1-0

[Event "European Womens-ch 2025"]
[Site "Rhodes"]
[Date "2025.04.04"]
[Round "5.57"]
[White "Koridze, Lile"]
[Black "Harutyunyan, Gabriela"]
[Result "1-0"]
[Annotator "NA"]
[ECO "E11"]
[WhiteElo "2115"]
[BlackElo "1793"]
[PlyCount "79"]
[EventDate "2025.03.29"]
[EventType "swiss"]
[EventCountry "GRE"]
[SourceTitle "playchess.com"]
[Source "ChessBase"]
[SourceQuality "1"]
[TimeControl "40/5400+30:1800+30"]

1. d4 {[%emt 0:00:01]} d5 {[%emt 0:00:13]} 2. c4 {[%emt 0:00:03]} e6 {[%emt 0:00:08]} 3. Nf3 {[%emt 0:00:04]} Nf6 {[%emt 0:00:12]} 4. g3 {[%emt 0:00:04]} Bb4+ {[%emt 0:00:08]} 5. Bd2 {[%emt 0:00:04]} Be7 {[%emt 0:00:12]} 6. Bg2 {[%emt 0:00:04]} O-O {[%emt 0:00:17]} 7. O-O {[%emt 0:00:05]} c6 {[%emt 0:00:04]} 8. Qc2 {[%emt 0:00:05]} Nbd7 {[%emt 0:00:10]} 9. b3 {[%emt 0:05:29]} b6 {[%emt 0:03:46]} 10. Rd1 {[%emt 0:10:22]} Bb7 {[%emt 0:03:12]} 11. Nc3 {[%emt 0:05:43]} Rc8 {[%emt 0:07:16]} 12. e4 {[%emt 0:07:46]} c5 {[%emt 0:09:10]} 13. exd5 {[%emt 0:04:28]} exd5 {[%emt 0:00:43]} 14. dxc5 {[%emt 0:05:18]} d4 {[%emt 0:11:26]} 15. Nxd4 {[%emt 0:06:14]} Bxg2 {[%emt 0:00:24]} 16. Kxg2 {[%emt 0:00:05]} Rxc5 {[%emt 0:08:44]} 17. Kg1 {[%emt 0:06:26]} Qa8 {[%emt 0:03:47]} 18. Bf4 {[%emt 0:13:16]} Rh5 {[%emt 0:07:15]} 19. Qe2 {[%emt 0:17:51]} Re8 {[%emt 0:09:33]} 20. Qf3 {[%emt 0:02:12]} Qc8 {[%emt 0:08:06]} 21. Nd5 {[%emt 0:03:50]} Bc5 {[%emt 0:03:34]} 22. Rac1 {[%emt 0:03:37]} Bxd4 {[%emt 0:03:24]} 23. Rxd4 {[%emt 0:00:07]} Rf5 {[%emt 0:01:02]} 24. Qd3 {[%emt 0:02:55]} Nc5 {[%emt 0:01:40]} 25. Qc2 {[%emt 0:00:19]} Na6 {[%emt 0:07:15]} 26. Qd2 {[%emt 0:02:27]} Qc6 {[%emt 0:05:11]} 27. Re1 {[%emt 0:02:07]} Rxe1+ {[%emt 0:03:54]} 28. Qxe1 {[%emt 0:00:03]} Nxd5 {[%emt 0:00:21]} 29. cxd5 {[%emt 0:01:08]} Qd7 {[%emt 0:00:41]} 30. d6 {[%emt 0:00:17]} Nc5 {[%emt 0:01:22]} 31. Qe7 {[%emt 0:00:25]} Rf6 {[%emt 0:01:25]} 32. Re4 {[%emt 0:00:43]} Re6 {[%emt 0:00:06]} 33. Rxe6 {[%emt 0:00:11]} fxe6 {[%emt 0:00:09]} 34. b4 {[%emt 0:00:04]} Qxe7 {[%emt 0:00:41]} 35. dxe7 {[%emt 0:00:05]} Kf7 {[%emt 0:00:06]} 36. bxc5 {[%emt 0:00:02]} Kxe7 {[%emt 0:00:07]} 37. cxb6 {[%emt 0:00:06]} axb6 {[%emt 0:00:03]} 38. Kf1 {[%emt 0:00:05]} h6 {[%emt 0:00:08]} 39. Ke2 {[%emt 0:00:05]} g5 {[%emt 0:00:07]} 40. Be3 {[%emt 0:00:00]} 1-0

[Event "European Womens-ch 2025"]
[Site "Rhodes"]
[Date "2025.04.04"]
[Round "5.58"]
[White "Golsta, Ramona"]
[Black "Tsetskhladze, Mariam"]
[Result "1/2-1/2"]
[Annotator "ChessBase"]
[ECO "E51"]
[WhiteElo "1943"]
[BlackElo "2105"]
[PlyCount "134"]
[EventDate "2025.03.29"]
[EventType "swiss"]
[EventCountry "GRE"]
[SourceTitle "playchess.com"]
[Source "ChessBase"]
[SourceQuality "1"]
[TimeControl "40/5400+30:1800+30"]

1. d4 {[%emt 0:00:01]} Nf6 {[%emt 0:00:09]} 2. c4 {[%emt 0:00:10]} e6 {[%emt 0:00:11]} 3. Nf3 {[%emt 0:01:57]} d5 {[%emt 0:00:11]} 4. Nc3 {[%emt 0:00:06]} Bb4 {[%emt 0:00:12]} 5. e3 {[%emt 0:02:16]} O-O {[%emt 0:05:22]} 6. Bd2 {[%emt 0:00:21]} b6 {[%emt 0:06:11]} 7. a3 {[%emt 0:01:47]} Be7 {[%emt 0:14:34]} 8. cxd5 {[%emt 0:07:15]} exd5 {[%emt 0:00:50]} 9. Bd3 {[%emt 0:00:50]} c5 {[%emt 0:03:35]} 10. O-O {[%emt 0:02:45]} Nc6 {[%emt 0:01:56]} 11. h3 {[%emt 0:01:45]} Bb7 {[%emt 0:02:42]} 12. Rc1 {[%emt 0:03:17]} c4 {[%emt 0:07:02]} 13. Bb1 {[%emt 0:01:21]} Re8 {[%emt 0:07:04]} 14. Ne5 {[%emt 0:03:52]} Nxe5 {[%emt 0:11:44]} 15. dxe5 {[%emt 0:00:09]} Nd7 {[%emt 0:00:16]} 16. f4 {[%emt 0:00:36]} Nc5 {[%emt 0:05:01]} 17. Be1 {[%emt 0:14:35]} Nb3 {[%emt 0:03:56]} 18. Qc2 {[%emt 0:03:37]} g6 {[%emt 0:00:15]} 19. Rd1 {[%emt 0:00:08]} d4 {[%emt 0:15:46]} 20. exd4 {[%emt 0:01:07]} Nxd4 {[%emt 0:00:48]} 21. Qd2 {[%emt 0:01:10]} Nb3 {[%emt 0:02:51]} 22. Qe2 {[%emt 0:02:44]} Qc7 {[%emt 0:01:18]} 23. Bf2 {[%emt 0:02:40]} Bc5 {[%emt 0:03:27]} 24. Be4 {[%emt 0:09:22]} Bxe4 {[%emt 0:04:40]} 25. Nxe4 {[%emt 0:00:18]} Be7 {[%emt 0:00:48]} 26. Qg4 {[%emt 0:04:50]} Nc5 {[%emt 0:01:37]} 27. Bxc5 {[%emt 0:08:42]} Bxc5+ {[%emt 0:00:04]} 28. Kh1 {[%emt 0:00:11]} Be7 {[%emt 0:00:41]} 29. Rd7 {[%emt 0:05:36]} Qc6 {[%emt 0:01:07]} 30. Re1 {[%emt 0:03:43]} h5 {[%emt 0:00:31]} 31. Qd1 {[%emt 0:00:06]} Rad8 {[%emt 0:00:38]} 32. Rxd8 {[%emt 0:00:47]} Rxd8 {[%emt 0:00:04]} 33. Qe2 {[%emt 0:00:31]} Qe6 {[%emt 0:00:40]} 34. g4 {[%emt 0:01:19]} hxg4 {[%emt 0:00:36]} 35. hxg4 {[%emt 0:00:04]} Qd5 {[%emt 0:00:23]} 36. Kg2 {[%emt 0:08:06]} Kg7 {[%emt 0:00:32]} 37. Qf3 {[%emt 0:02:40]} Qd3 {[%emt 0:00:44]} 38. Re2 {[%emt 0:03:13]} b5 {[%emt 0:00:31]} 39. f5 {[%emt 0:01:36]} Qxf3+ {[%emt 0:00:19]} 40. Kxf3 {[%emt 0:00:00]} Rd3+ {[%emt 0:00:00]} 41. Re3 {[%emt 0:00:42]} Rxe3+ {[%emt 0:05:21]} 42. Kxe3 {[%emt 0:03:35]} gxf5 {[%emt 0:03:22]} 43. gxf5 {[%emt 0:00:08]} Kf8 {[%emt 0:03:30]} 44. Kd4 {[%emt 0:03:22]} Bd8 {[%emt 0:01:56]} 45. Nd6 {[%emt 0:08:17]} Bb6+ {[%emt 0:02:02]} 46. Kc3 {[%emt 0:00:43]} a6 {[%emt 0:02:54]} 47. a4 {[%emt 0:01:00]} bxa4 {[%emt 0:01:03]} 48. Kxc4 {[%emt 0:00:24]} Be3 {[%emt 0:02:55]} 49. Kb4 {[%emt 0:00:39]} Bd4 {[%emt 0:00:43]} 50. Nc4 {[%emt 0:00:05]} Ke7 {[%emt 0:02:03]} 51. Kxa4 {[%emt 0:00:18]} Kd7 {[%emt 0:00:09]} 52. Ka5 {[%emt 0:00:44]} Kc6 {[%emt 0:00:18]} 53. Kxa6 {[%emt 0:01:44]} Kc5 {[%emt 0:00:45]} 54. b3 {[%emt 0:05:01]} Kb4 {[%emt 0:00:12]} 55. e6 {[%emt 0:00:30]} fxe6 {[%emt 0:00:16]} 56. fxe6 {[%emt 0:00:05]} Bf6 {[%emt 0:06:41]} 57. Nd2 {[%emt 0:12:30]} Be7 {[%emt 0:00:13]} 58. Kb6 {[%emt 0:02:28]} Kc3 {[%emt 0:00:51]} 59. Ka5 {[%emt 0:00:07]} Bd8+ {[%emt 0:01:47]} 60. Ka4 {[%emt 0:00:43]} Kd4 {[%emt 0:00:34]} 61. Nf3+ {[%emt 0:01:36]} Kd5 {[%emt 0:00:06]} 62. Kb5 {[%emt 0:00:24]} Kxe6 {[%emt 0:00:05]} 63. Kc6 {[%emt 0:00:17]} Ba5 {[%emt 0:00:26]} 64. Nd4+ {[%emt 0:00:29]} Ke7 {[%emt 0:00:48]} 65. Kb5 {[%emt 0:00:15]} Be1 {[%emt 0:00:14]} 66. Nf3 {[%emt 0:00:38]} Bc3 {[%emt 0:00:13]} 67. Kc4 {[%emt 0:00:27]} Ba5 {[%emt 0:00:15]} 1/2-1/2

[Event "European Womens-ch 2025"]
[Site "Rhodes"]
[Date "2025.04.04"]
[Round "5.59"]
[White "Vidic, Teja"]
[Black "Recica, Jona"]
[Result "1-0"]
[Annotator "NA"]
[ECO "C77"]
[WhiteElo "2100"]
[BlackElo "1716"]
[PlyCount "75"]
[EventDate "2025.03.29"]
[EventType "swiss"]
[EventCountry "GRE"]
[SourceTitle "playchess.com"]
[Source "ChessBase"]
[SourceQuality "1"]
[TimeControl "40/5400+30:1800+30"]

1. e4 {[%emt 0:00:01]} e5 {[%emt 0:00:04]} 2. Nf3 {[%emt 0:00:05]} Nc6 {[%emt 0:00:06]} 3. Bb5 {[%emt 0:00:03]} a6 {[%emt 0:00:07]} 4. Ba4 {[%emt 0:00:04]} Nf6 {[%emt 0:00:12]} 5. Nc3 {[%emt 0:00:00]} b5 {[%emt 0:00:30]} 6. Bb3 {[%emt 0:00:10]} Bc5 {[%emt 1:32:31]} 7. Nd5 {[%emt 1:33:37]} h6 {[%emt 0:00:00]} 8. c3 d6 {[%emt 0:00:00]} 9. d4 Ba7 {[%emt 0:00:00]} 10. a4 Bb7 {[%emt 0:00:00]} 11. axb5 {[%emt 0:00:00]} axb5 {[%emt 0:00:00]} 12. O-O O-O {[%emt 0:03:00]} 13. Be3 {[%emt 0:03:00]} Kh8 {[%emt 0:00:00]} 14. Nxf6 Qxf6 {[%emt 0:00:00]} 15. d5 Bxe3 {[%emt 0:01:30]} 16. dxc6 {[%emt 0:00:00]} Rxa1 {[%emt 0:00:00]} 17. Qxa1 {[%emt 0:00:00]} Bxc6 {[%emt 0:00:00]} 18. fxe3 {[%emt 0:00:00]} Bxe4 {[%emt 0:00:00]} 19. Nd2 {[%emt 0:00:00]} Qg6 {[%emt 0:00:00]} 20. Nxe4 {[%emt 0:00:00]} Qxe4 {[%emt 0:00:00]} 21. Qe1 {[%emt 0:00:00]} f5 {[%emt 0:00:00]} 22. Qe2 {[%emt 0:00:00]} Qc6 {[%emt 0:00:00]} 23. Qd3 {[%emt 0:00:00]} Qd7 {[%emt 0:00:00]} 24. h3 {[%emt 0:00:00]} Rf6 {[%emt 0:00:00]} 25. Qd5 {[%emt 0:00:00]} Qe8 {[%emt 0:00:00]} 26. Qb7 {[%emt 0:00:00]} c5 {[%emt 0:00:00]} 27. Bd5 {[%emt 0:00:00]} f4 {[%emt 0:00:00]} 28. exf4 {[%emt 0:00:00]} exf4 {[%emt 0:00:00]} 29. Bf3 {[%emt 0:00:00]} Rf7 {[%emt 0:00:00]} 30. Qd5 {[%emt 0:00:00]} Rf6 {[%emt 0:00:00]} 31. Ra1 {[%emt 0:00:00]} Qe3+ {[%emt 0:00:00]} 32. Kh2 {[%emt 0:00:00]} Re6 {[%emt 0:00:00]} 33. Ra8+ {[%emt 0:00:00]} Kh7 {[%emt 0:00:00]} 34. Qf5+ {[%emt 0:00:00]} Rg6 {[%emt 0:00:00]} 35. Rf8 {[%emt 0:00:00]} c4 {[%emt 0:00:00]} 36. Qxf4 {[%emt 0:00:00]} Qxf4+ {[%emt 0:00:00]} 37. Rxf4 {[%emt 0:00:00]} Re6 {[%emt 0:00:00]} 38. Re4 {[%emt 0:00:00]} 1-0

[Event "European Womens-ch 2025"]
[Site "Rhodes"]
[Date "2025.04.04"]
[Round "5.60"]
[White "Alexandri, Vasiliki"]
[Black "Grapsa, Georgia"]
[Result "1/2-1/2"]
[Annotator "NA"]
[ECO "E43"]
[WhiteElo "1927"]
[BlackElo "2065"]
[PlyCount "28"]
[EventDate "2025.03.29"]
[EventType "swiss"]
[EventCountry "GRE"]
[SourceTitle "playchess.com"]
[Source "ChessBase"]
[SourceQuality "1"]
[TimeControl "40/5400+30:1800+30"]

1. d4 {[%emt 0:00:03]} Nf6 {[%emt 0:02:40]} 2. c4 {[%emt 0:00:07]} e6 {[%emt 0:00:04]} 3. Nc3 {[%emt 0:00:07]} Bb4 {[%emt 0:00:03]} 4. e3 {[%emt 0:00:10]} b6 {[%emt 0:00:05]} 5. Bd3 {[%emt 0:00:15]} Bb7 {[%emt 0:00:07]} 6. Nf3 {[%emt 0:00:18]} Ne4 {[%emt 0:00:08]} 7. Qc2 {[%emt 0:00:24]} f5 {[%emt 0:00:14]} 8. Nd2 {[%emt 0:00:23]} Bxc3 {[%emt 0:00:08]} 9. bxc3 {[%emt 0:00:07]} Nxd2 {[%emt 0:00:06]} 10. Bxd2 {[%emt 0:00:17]} Qh4 {[%emt 0:00:05]} 11. O-O {[%emt 0:00:19]} Bxg2 {[%emt 0:00:06]} 12. Kxg2 {[%emt 0:00:17]} Qg4+ {[%emt 0:00:04]} 13. Kh1 {[%emt 0:00:15]} Qf3+ {[%emt 0:00:04]} 14. Kg1 {[%emt 0:00:11]} Qg4+ {[%emt 0:00:04]} 1/2-1/2

[Event "European Womens-ch 2025"]
[Site "Rhodes"]
[Date "2025.04.04"]
[Round "5.61"]
[White "Kalyva, Kyriaki"]
[Black "Acarbay, Algi"]
[Result "1/2-1/2"]
[Annotator "NA"]
[ECO "D13"]
[WhiteElo "1885"]
[BlackElo "2052"]
[PlyCount "156"]
[EventDate "2025.03.29"]
[EventType "swiss"]
[EventCountry "GRE"]
[SourceTitle "playchess.com"]
[Source "ChessBase"]
[SourceQuality "1"]
[TimeControl "40/5400+30:1800+30"]

1. Nf3 {[%emt 1:31:00]} d5 {[%emt 0:00:21]} 2. c4 {[%emt 0:00:00]} c6 {[%emt 0:00:17]} 3. e3 {[%emt 0:00:00]} Nf6 {[%emt 0:00:40]} 4. cxd5 {[%emt 0:00:00]} cxd5 {[%emt 0:00:30]} 5. Nc3 {[%emt 0:00:00]} Nc6 {[%emt 0:01:07]} 6. d4 {[%emt 0:00:00]} Bg4 {[%emt 0:11:04]} 7. Be2 {[%emt 0:00:00]} a6 {[%emt 0:05:57]} 8. O-O {[%emt 0:00:00]} e6 {[%emt 0:03:52]} 9. a3 {[%emt 0:00:00]} Bd6 {[%emt 0:01:10]} 10. h3 {[%emt 0:00:00]} Bh5 {[%emt 0:03:37]} 11. b4 {[%emt 0:00:00]} b5 {[%emt 0:05:44]} 12. Bb2 {[%emt 0:00:00]} O-O {[%emt 0:03:09]} 13. Rc1 {[%emt 0:00:00]} Rc8 {[%emt 0:01:43]} 14. Qb3 {[%emt 0:00:00]} Nd7 {[%emt 0:15:01]} 15. Rfd1 {[%emt 0:00:00]} Nb6 {[%emt 0:19:00]} 16. e4 {[%emt 0:00:00]} Re8 {[%emt 0:05:20]} 17. e5 {[%emt 0:00:00]} Be7 {[%emt 0:00:29]} 18. Nb1 {[%emt 0:00:00]} Nc4 {[%emt 0:02:03]} 19. Rc2 {[%emt 0:00:00]} Qb6 {[%emt 0:03:58]} 20. Bxc4 {[%emt 0:00:00]} bxc4 {[%emt 0:00:15]} 21. Qe3 {[%emt 0:00:00]} Bg6 {[%emt 0:01:45]} 22. Re2 {[%emt 0:00:11]} Bd3 {[%emt 0:01:41]} 23. Rxd3 {[%emt 0:00:14]} cxd3 {[%emt 0:00:10]} 24. Qxd3 {[%emt 0:00:05]} Qb5 {[%emt 0:01:36]} 25. Qxb5 {[%emt 0:01:40]} axb5 {[%emt 0:00:05]} 26. Nc3 {[%emt 0:00:09]} Na7 {[%emt 0:01:00]} 27. Nd2 {[%emt 0:00:58]} f6 {[%emt 0:02:56]} 28. Nb3 {[%emt 0:02:32]} fxe5 {[%emt 0:01:18]} 29. dxe5 {[%emt 0:00:05]} Rc4 {[%emt 0:01:13]} 30. Nd2 {[%emt 0:00:27]} Rc7 {[%emt 0:00:18]} 31. Nb3 {[%emt 0:00:07]} Rec8 {[%emt 0:00:36]} 32. Re3 {[%emt 0:00:21]} Rc4 {[%emt 0:02:47]} 33. Rd3 {[%emt 0:00:41]} Bxb4 {[%emt 0:04:48]} 34. axb4 {[%emt 0:00:14]} Rxb4 {[%emt 0:00:02]} 35. Nd1 {[%emt 0:01:01]} Kf7 {[%emt 0:01:12]} 36. Nd4 {[%emt 0:01:58]} Ra4 {[%emt 0:00:50]} 37. Nc3 {[%emt 0:01:52]} Ra5 {[%emt 0:00:49]} 38. Nce2 {[%emt 0:02:18]} b4 {[%emt 0:00:26]} 39. Rb3 {[%emt 0:00:00]} Rc4 {[%emt 0:00:00]} 40. Nf4 {[%emt 0:00:00]} Ra6 {[%emt 0:00:00]} 41. Kf1 {[%emt 0:09:36]} g5 {[%emt 0:03:22]} 42. Nd3 {[%emt 0:03:31]} Ra4 {[%emt 0:03:31]} 43. f4 {[%emt 0:03:32]} h6 {[%emt 0:04:04]} 44. fxg5 {[%emt 0:00:07]} hxg5 {[%emt 0:00:07]} 45. h4 {[%emt 0:00:24]} gxh4 {[%emt 0:01:07]} 46. Nf4 {[%emt 0:00:41]} Nc6 {[%emt 0:06:37]} 47. Ndxe6 {[%emt 0:10:03]} d4 {[%emt 0:00:25]} 48. Ng5+ {[%emt 0:01:09]} Ke8 {[%emt 0:00:43]} 49. Ne4 {[%emt 0:02:06]} Rc2 {[%emt 0:01:37]} 50. Ke1 {[%emt 0:08:28]} Ra2 {[%emt 0:01:22]} 51. Nd3 {[%emt 0:00:00]} Rxg2 {[%emt 0:00:17]} 52. Ndf2 {[%emt 0:00:00]} Rg1+ {[%emt 0:07:53]} 53. Ke2 {[%emt 0:00:00]} Rb1 {[%emt 0:00:27]} 54. Nd6+ {[%emt 0:00:00]} Kd7 {[%emt 0:00:54]} 55. Nc4 {[%emt 0:00:00]} Ke6 {[%emt 0:00:59]} 56. Nd1 {[%emt 0:00:00]} Nxe5 {[%emt 0:03:32]} 57. Nd2 {[%emt 0:01:37]} d3+ {[%emt 0:00:37]} 58. Ke1 {[%emt 0:00:05]} Rbxb2 {[%emt 0:02:23]} 59. Nxb2 {[%emt 0:00:52]} h3 {[%emt 0:00:26]} 60. Rxb4 {[%emt 0:00:41]} h2 {[%emt 0:00:30]} 61. Rh4 {[%emt 0:00:29]} Rxb2 {[%emt 0:00:30]} 62. Rxh2 {[%emt 0:00:09]} Kd5 {[%emt 0:00:37]} 63. Rh4 {[%emt 0:00:57]} Ra2 {[%emt 0:00:29]} 64. Rb4 {[%emt 0:00:59]} Ra1+ {[%emt 0:00:30]} 65. Rb1 {[%emt 0:00:22]} Ra8 {[%emt 0:00:30]} 66. Rb5+ {[%emt 0:00:22]} Kd4 {[%emt 0:00:26]} 67. Nb3+ {[%emt 0:00:54]} Ke4 {[%emt 0:00:35]} 68. Nd2+ {[%emt 0:00:54]} Kf4 {[%emt 0:00:37]} 69. Rb4+ {[%emt 0:00:17]} Kf5 {[%emt 0:00:06]} 70. Kf2 {[%emt 0:00:22]} Rh8 {[%emt 0:00:38]} 71. Nf3 {[%emt 0:00:41]} Ng4+ {[%emt 0:00:27]} 72. Kg3 {[%emt 0:00:12]} Nf6 {[%emt 0:00:34]} 73. Rf4+ {[%emt 0:00:19]} Ke6 {[%emt 0:00:24]} 74. Rd4 {[%emt 0:00:25]} Rg8+ {[%emt 0:00:45]} 75. Kh3 {[%emt 0:00:48]} Nd5 {[%emt 0:00:30]} 76. Kh4 {[%emt 0:00:28]} Rh8+ {[%emt 0:00:31]} 77. Kg3 {[%emt 0:00:15]} Rg8+ {[%emt 0:00:12]} 78. Kf2 {[%emt 0:00:20]} Rf8 {[%emt 0:00:52]} 1/2-1/2

[Event "European Womens-ch 2025"]
[Site "Rhodes"]
[Date "2025.04.04"]
[Round "5.62"]
[White "Bochnickova, Andrea"]
[Black "Saraci, Ndriqona"]
[Result "1-0"]
[Annotator "NA"]
[ECO "B01"]
[WhiteElo "2051"]
[BlackElo "1692"]
[PlyCount "55"]
[EventDate "2025.03.29"]
[EventType "swiss"]
[EventCountry "GRE"]
[SourceTitle "playchess.com"]
[Source "ChessBase"]
[SourceQuality "1"]
[TimeControl "40/5400+30:1800+30"]

1. e4 {[%emt 0:00:07]} d5 {[%emt 0:00:09]} 2. exd5 {[%emt 0:00:10]} Qxd5 {[%emt 0:00:07]} 3. Nc3 {[%emt 0:00:07]} Qa5 {[%emt 0:00:22]} 4. d4 {[%emt 0:01:09]} Nf6 {[%emt 0:00:47]} 5. Nf3 {[%emt 0:00:09]} c6 {[%emt 0:01:02]} 6. Bd2 {[%emt 0:00:25]} Qc7 {[%emt 0:08:34]} 7. Bc4 {[%emt 0:02:44]} Bf5 {[%emt 0:02:53]} 8. Ne5 {[%emt 0:02:10]} e6 {[%emt 0:01:46]} 9. g4 {[%emt 0:02:14]} Bg6 {[%emt 0:01:38]} 10. h4 {[%emt 0:02:07]} Nbd7 {[%emt 0:04:46]} 11. Bf4 {[%emt 0:12:55]} Be4 {[%emt 0:19:59]} 12. Nxe4 {[%emt 0:08:30]} Nxe4 {[%emt 0:00:16]} 13. Qf3 {[%emt 0:08:19]} Qa5+ {[%emt 0:04:34]} 14. c3 {[%emt 0:01:40]} Nd6 {[%emt 0:50:37]} 15. Bb3 {[%emt 0:02:50]} Nxe5 {[%emt 0:00:00]} 16. Bxe5 {[%emt 0:00:53]} Nb5 {[%emt 0:00:00]} 17. O-O-O {[%emt 0:01:56]} Nc7 {[%emt 0:00:00]} 18. Kb1 {[%emt 0:03:11]} f6 {[%emt 0:00:00]} 19. Bxc7 {[%emt 0:06:21]} Qxc7 {[%emt 0:00:00]} 20. Bxe6 {[%emt 0:00:14]} Qd6 {[%emt 0:00:00]} 21. Rhe1 {[%emt 0:00:58]} Be7 {[%emt 0:00:00]} 22. c4 {[%emt 0:00:47]} Kf8 {[%emt 0:00:00]} 23. h5 {[%emt 0:04:50]} a5 {[%emt 0:00:00]} 24. c5 {[%emt 0:00:53]} Qc7 {[%emt 0:00:00]} 25. Qf5 {[%emt 0:01:07]} a4 {[%emt 0:00:00]} 26. Bc4 {[%emt 0:02:42]} Qc8 {[%emt 0:00:00]} 27. Re6 {[%emt 0:02:36]} Ra7 {[%emt 0:00:00]} 28. Rxf6+ {[%emt 0:00:38]} 1-0